{"text_format":"2","workbook":"xlsx","n_sheets":1,"sheets":["szilankszamolo"],"not_rendered":{"charts":0,"images":0,"macros":0,"external_links":0,"defined_names":0,"comments":0,"pivot_tables":0},"unopened":[],"bounds":{"document_bytes":16777216,"sheet_cells":100000,"run_cost":"one","rows_first":2000,"rows_last":500,"rows_between":2000,"halvings":0,"cell_chars":16384,"cell_head_chars":4096},"cells_cut":0,"cells_raw":0,"read":"whole","date_system":"1900"}

{"sheet":"szilankszamolo","index":0,"n_rows":32,"n_cols":12,"rows_kept":32,"cut":false,"hidden":false,"merged":[[2,1,2,8],[17,1,17,8]]}
[{"$f":"I1","v":"théta szilánk (2630)"},"alfa szilánk (2623)","béta szilánk (2624)","delta szilánk (2625)","gamma szilánk (2626)","epszilon szilánk (2627)","dzéta szilánk (2628)","éta szilánk (2629)","théta szilánk (2630)",{"$f":"B1","v":"alfa szilánk (2623)"},"készíthető omega kristály (2631)","maradék szilánkok száma"]
[{"$f":"I2","v":3},7,2,1,3,9,5,10,3,{"$f":"B2","v":7},{"$f":"ROUNDDOWN(AVERAGE(B2:I2),0)","v":5},{"$f":"SUM(B2:I2)-K2*8","v":0}]
[null,"különbözet az elérhető omega kristályhoz képest"]
[-2,{"$f":"B2-$K$2","v":2},{"$f":"C2-$K$2","v":-3},{"$f":"D2-$K$2","v":-4},{"$f":"E2-$K$2","v":-2},{"$f":"F2-$K$2","v":4},{"$f":"G2-$K$2","v":0},{"$f":"H2-$K$2","v":5},{"$f":"I2-$K$2","v":-2},{"$f":"B4","v":2}]
[0,{"$f":"IF(MOD(ROW(),2)=1,IF(INDIRECT(CONCATENATE(CHAR(COLUMN()+64),ROW()-1))>0,IF(INDIRECT(CONCATENATE(CHAR(COLUMN()+65),ROW()-1))<0,MAX(INDIRECT(CONCATENATE(CHAR(COLUMN()+64),ROW()-1))+INDIRECT(CONCATENATE(CHAR(COLUMN()+65),ROW()-1)),0),INDIRECT(CONCATENATE(CHAR(COLUMN()+64),ROW()-1))),IF(INDIRECT(CONCATENATE(CHAR(COLUMN()+64),ROW()-1))<0,IF(INDIRECT(CONCATENATE(CHAR(COLUMN()+63),ROW()-1))>0,MIN(INDIRECT(CONCATENATE(CHAR(COLUMN()+63),ROW()-1))+INDIRECT(CONCATENATE(CHAR(COLUMN()+64),ROW()-1)),0),INDIRECT(CONCATENATE(CHAR(COLUMN()+64),ROW()-1))),INDIRECT(CONCATENATE(CHAR(COLUMN()+64),ROW()-1)))),IF(INDIRECT(CONCATENATE(CHAR(COLUMN()+64),ROW()-1))<=0,IF(INDIRECT(CONCATENATE(CHAR(COLUMN()+65),ROW()-1))>=0,0,INDIRECT(CONCATENATE(CHAR(COLUMN()+65),ROW()-1))),INDIRECT(CONCATENATE(CHAR(COLUMN()+64),ROW()-1))))","v":0},{"$f":"IF(MOD(ROW(),2)=1,IF(INDIRECT(CONCATENATE(CHAR(COLUMN()+64),ROW()-1))>0,IF(INDIRECT(CONCATENATE(CHAR(COLUMN()+65),ROW()-1))<0,MAX(INDIRECT(CONCATENATE(CHAR(COLUMN()+64),ROW()-1))+INDIRECT(CONCATENATE(CHAR(COLUMN()+65),ROW()-1)),0),INDIRECT(CONCATENATE(CHAR(COLUMN()+64),ROW()-1))),IF(INDIRECT(CONCATENATE(CHAR(COLUMN()+64),ROW()-1))<0,IF(INDIRECT(CONCATENATE(CHAR(COLUMN()+63),ROW()-1))>0,MIN(INDIRECT(CONCATENATE(CHAR(COLUMN()+63),ROW()-1))+INDIRECT(CONCATENATE(CHAR(COLUMN()+64),ROW()-1)),0),INDIRECT(CONCATENATE(CHAR(COLUMN()+64),ROW()-1))),INDIRECT(CONCATENATE(CHAR(COLUMN()+64),ROW()-1)))),IF(INDIRECT(CONCATENATE(CHAR(COLUMN()+64),ROW()-1))<=0,IF(INDIRECT(CONCATENATE(CHAR(COLUMN()+65),ROW()-1))>=0,0,INDIRECT(CONCATENATE(CHAR(COLUMN()+65),ROW()-1))),INDIRECT(CONCATENATE(CHAR(COLUMN()+64),ROW()-1))))","v":-1},-4,-2,4,0,3,0,{"$f":"B5","v":0},"amit lehet, azt pótoljuk"]
[0,{"$f":"IF(MOD(ROW(),2)=1,IF(INDIRECT(CONCATENATE(CHAR(COLUMN()+64),ROW()-1))>0,IF(INDIRECT(CONCATENATE(CHAR(COLUMN()+65),ROW()-1))<0,MAX(INDIRECT(CONCATENATE(CHAR(COLUMN()+64),ROW()-1))+INDIRECT(CONCATENATE(CHAR(COLUMN()+65),ROW()-1)),0),INDIRECT(CONCATENATE(CHAR(COLUMN()+64),ROW()-1))),IF(INDIRECT(CONCATENATE(CHAR(COLUMN()+64),ROW()-1))<0,IF(INDIRECT(CONCATENATE(CHAR(COLUMN()+63),ROW()-1))>0,MIN(INDIRECT(CONCATENATE(CHAR(COLUMN()+63),ROW()-1))+INDIRECT(CONCATENATE(CHAR(COLUMN()+64),ROW()-1)),0),INDIRECT(CONCATENATE(CHAR(COLUMN()+64),ROW()-1))),INDIRECT(CONCATENATE(CHAR(COLUMN()+64),ROW()-1)))),IF(INDIRECT(CONCATENATE(CHAR(COLUMN()+64),ROW()-1))<=0,IF(INDIRECT(CONCATENATE(CHAR(COLUMN()+65),ROW()-1))>=0,0,INDIRECT(CONCATENATE(CHAR(COLUMN()+65),ROW()-1))),INDIRECT(CONCATENATE(CHAR(COLUMN()+64),ROW()-1))))","v":-1},-4,-2,0,4,0,3,0,{"$f":"B6","v":-1},"ezután toljuk balra a hiányokat"]
[0,{"$f":"IF(MOD(ROW(),2)=1,IF(INDIRECT(CONCATENATE(CHAR(COLUMN()+64),ROW()-1))>0,IF(INDIRECT(CONCATENATE(CHAR(COLUMN()+65),ROW()-1))<0,MAX(INDIRECT(CONCATENATE(CHAR(COLUMN()+64),ROW()-1))+INDIRECT(CONCATENATE(CHAR(COLUMN()+65),ROW()-1)),0),INDIRECT(CONCATENATE(CHAR(COLUMN()+64),ROW()-1))),IF(INDIRECT(CONCATENATE(CHAR(COLUMN()+64),ROW()-1))<0,IF(INDIRECT(CONCATENATE(CHAR(COLUMN()+63),ROW()-1))>0,MIN(INDIRECT(CONCATENATE(CHAR(COLUMN()+63),ROW()-1))+INDIRECT(CONCATENATE(CHAR(COLUMN()+64),ROW()-1)),0),INDIRECT(CONCATENATE(CHAR(COLUMN()+64),ROW()-1))),INDIRECT(CONCATENATE(CHAR(COLUMN()+64),ROW()-1)))),IF(INDIRECT(CONCATENATE(CHAR(COLUMN()+64),ROW()-1))<=0,IF(INDIRECT(CONCATENATE(CHAR(COLUMN()+65),ROW()-1))>=0,0,INDIRECT(CONCATENATE(CHAR(COLUMN()+65),ROW()-1))),INDIRECT(CONCATENATE(CHAR(COLUMN()+64),ROW()-1))))","v":-1},-4,-2,0,4,0,3,0,{"$f":"B7","v":-1},"majd ezt ismételgessük :)"]
[-1,{"$f":"IF(MOD(ROW(),2)=1,IF(INDIRECT(CONCATENATE(CHAR(COLUMN()+64),ROW()-1))>0,IF(INDIRECT(CONCATENATE(CHAR(COLUMN()+65),ROW()-1))<0,MAX(INDIRECT(CONCATENATE(CHAR(COLUMN()+64),ROW()-1))+INDIRECT(CONCATENATE(CHAR(COLUMN()+65),ROW()-1)),0),INDIRECT(CONCATENATE(CHAR(COLUMN()+64),ROW()-1))),IF(INDIRECT(CONCATENATE(CHAR(COLUMN()+64),ROW()-1))<0,IF(INDIRECT(CONCATENATE(CHAR(COLUMN()+63),ROW()-1))>0,MIN(INDIRECT(CONCATENATE(CHAR(COLUMN()+63),ROW()-1))+INDIRECT(CONCATENATE(CHAR(COLUMN()+64),ROW()-1)),0),INDIRECT(CONCATENATE(CHAR(COLUMN()+64),ROW()-1))),INDIRECT(CONCATENATE(CHAR(COLUMN()+64),ROW()-1)))),IF(INDIRECT(CONCATENATE(CHAR(COLUMN()+64),ROW()-1))<=0,IF(INDIRECT(CONCATENATE(CHAR(COLUMN()+65),ROW()-1))>=0,0,INDIRECT(CONCATENATE(CHAR(COLUMN()+65),ROW()-1))),INDIRECT(CONCATENATE(CHAR(COLUMN()+64),ROW()-1))))","v":-4},-2,0,0,4,0,3,-1,{"$f":"B8","v":-4}]
[0,{"$f":"IF(MOD(ROW(),2)=1,IF(INDIRECT(CONCATENATE(CHAR(COLUMN()+64),ROW()-1))>0,IF(INDIRECT(CONCATENATE(CHAR(COLUMN()+65),ROW()-1))<0,MAX(INDIRECT(CONCATENATE(CHAR(COLUMN()+64),ROW()-1))+INDIRECT(CONCATENATE(CHAR(COLUMN()+65),ROW()-1)),0),INDIRECT(CONCATENATE(CHAR(COLUMN()+64),ROW()-1))),IF(INDIRECT(CONCATENATE(CHAR(COLUMN()+64),ROW()-1))<0,IF(INDIRECT(CONCATENATE(CHAR(COLUMN()+63),ROW()-1))>0,MIN(INDIRECT(CONCATENATE(CHAR(COLUMN()+63),ROW()-1))+INDIRECT(CONCATENATE(CHAR(COLUMN()+64),ROW()-1)),0),INDIRECT(CONCATENATE(CHAR(COLUMN()+64),ROW()-1))),INDIRECT(CONCATENATE(CHAR(COLUMN()+64),ROW()-1)))),IF(INDIRECT(CONCATENATE(CHAR(COLUMN()+64),ROW()-1))<=0,IF(INDIRECT(CONCATENATE(CHAR(COLUMN()+65),ROW()-1))>=0,0,INDIRECT(CONCATENATE(CHAR(COLUMN()+65),ROW()-1))),INDIRECT(CONCATENATE(CHAR(COLUMN()+64),ROW()-1))))","v":-4},-2,0,0,4,0,2,0,{"$f":"B9","v":-4}]
[-4,{"$f":"IF(MOD(ROW(),2)=1,IF(INDIRECT(CONCATENATE(CHAR(COLUMN()+64),ROW()-1))>0,IF(INDIRECT(CONCATENATE(CHAR(COLUMN()+65),ROW()-1))<0,MAX(INDIRECT(CONCATENATE(CHAR(COLUMN()+64),ROW()-1))+INDIRECT(CONCATENATE(CHAR(COLUMN()+65),ROW()-1)),0),INDIRECT(CONCATENATE(CHAR(COLUMN()+64),ROW()-1))),IF(INDIRECT(CONCATENATE(CHAR(COLUMN()+64),ROW()-1))<0,IF(INDIRECT(CONCATENATE(CHAR(COLUMN()+63),ROW()-1))>0,MIN(INDIRECT(CONCATENATE(CHAR(COLUMN()+63),ROW()-1))+INDIRECT(CONCATENATE(CHAR(COLUMN()+64),ROW()-1)),0),INDIRECT(CONCATENATE(CHAR(COLUMN()+64),ROW()-1))),INDIRECT(CONCATENATE(CHAR(COLUMN()+64),ROW()-1)))),IF(INDIRECT(CONCATENATE(CHAR(COLUMN()+64),ROW()-1))<=0,IF(INDIRECT(CONCATENATE(CHAR(COLUMN()+65),ROW()-1))>=0,0,INDIRECT(CONCATENATE(CHAR(COLUMN()+65),ROW()-1))),INDIRECT(CONCATENATE(CHAR(COLUMN()+64),ROW()-1))))","v":-2},0,0,0,4,0,2,-4,{"$f":"B10","v":-2}]
[-2,{"$f":"IF(MOD(ROW(),2)=1,IF(INDIRECT(CONCATENATE(CHAR(COLUMN()+64),ROW()-1))>0,IF(INDIRECT(CONCATENATE(CHAR(COLUMN()+65),ROW()-1))<0,MAX(INDIRECT(CONCATENATE(CHAR(COLUMN()+64),ROW()-1))+INDIRECT(CONCATENATE(CHAR(COLUMN()+65),ROW()-1)),0),INDIRECT(CONCATENATE(CHAR(COLUMN()+64),ROW()-1))),IF(INDIRECT(CONCATENATE(CHAR(COLUMN()+64),ROW()-1))<0,IF(INDIRECT(CONCATENATE(CHAR(COLUMN()+63),ROW()-1))>0,MIN(INDIRECT(CONCATENATE(CHAR(COLUMN()+63),ROW()-1))+INDIRECT(CONCATENATE(CHAR(COLUMN()+64),ROW()-1)),0),INDIRECT(CONCATENATE(CHAR(COLUMN()+64),ROW()-1))),INDIRECT(CONCATENATE(CHAR(COLUMN()+64),ROW()-1)))),IF(INDIRECT(CONCATENATE(CHAR(COLUMN()+64),ROW()-1))<=0,IF(INDIRECT(CONCATENATE(CHAR(COLUMN()+65),ROW()-1))>=0,0,INDIRECT(CONCATENATE(CHAR(COLUMN()+65),ROW()-1))),INDIRECT(CONCATENATE(CHAR(COLUMN()+64),ROW()-1))))","v":-2},0,0,0,4,0,0,-2,{"$f":"B11","v":-2}]
[{"$f":"I12","v":-2},{"$f":"IF(MOD(ROW(),2)=1,IF(INDIRECT(CONCATENATE(CHAR(COLUMN()+64),ROW()-1))>0,IF(INDIRECT(CONCATENATE(CHAR(COLUMN()+65),ROW()-1))<0,MAX(INDIRECT(CONCATENATE(CHAR(COLUMN()+64),ROW()-1))+INDIRECT(CONCATENATE(CHAR(COLUMN()+65),ROW()-1)),0),INDIRECT(CONCATENATE(CHAR(COLUMN()+64),ROW()-1))),IF(INDIRECT(CONCATENATE(CHAR(COLUMN()+64),ROW()-1))<0,IF(INDIRECT(CONCATENATE(CHAR(COLUMN()+63),ROW()-1))>0,MIN(INDIRECT(CONCATENATE(CHAR(COLUMN()+63),ROW()-1))+INDIRECT(CONCATENATE(CHAR(COLUMN()+64),ROW()-1)),0),INDIRECT(CONCATENATE(CHAR(COLUMN()+64),ROW()-1))),INDIRECT(CONCATENATE(CHAR(COLUMN()+64),ROW()-1)))),IF(INDIRECT(CONCATENATE(CHAR(COLUMN()+64),ROW()-1))<=0,IF(INDIRECT(CONCATENATE(CHAR(COLUMN()+65),ROW()-1))>=0,0,INDIRECT(CONCATENATE(CHAR(COLUMN()+65),ROW()-1))),INDIRECT(CONCATENATE(CHAR(COLUMN()+64),ROW()-1))))","v":0},0,0,0,4,0,-2,-2,{"$f":"B12","v":0}]
[-2,{"$f":"IF(MOD(ROW(),2)=1,IF(INDIRECT(CONCATENATE(CHAR(COLUMN()+64),ROW()-1))>0,IF(INDIRECT(CONCATENATE(CHAR(COLUMN()+65),ROW()-1))<0,MAX(INDIRECT(CONCATENATE(CHAR(COLUMN()+64),ROW()-1))+INDIRECT(CONCATENATE(CHAR(COLUMN()+65),ROW()-1)),0),INDIRECT(CONCATENATE(CHAR(COLUMN()+64),ROW()-1))),IF(INDIRECT(CONCATENATE(CHAR(COLUMN()+64),ROW()-1))<0,IF(INDIRECT(CONCATENATE(CHAR(COLUMN()+63),ROW()-1))>0,MIN(INDIRECT(CONCATENATE(CHAR(COLUMN()+63),ROW()-1))+INDIRECT(CONCATENATE(CHAR(COLUMN()+64),ROW()-1)),0),INDIRECT(CONCATENATE(CHAR(COLUMN()+64),ROW()-1))),INDIRECT(CONCATENATE(CHAR(COLUMN()+64),ROW()-1)))),IF(INDIRECT(CONCATENATE(CHAR(COLUMN()+64),ROW()-1))<=0,IF(INDIRECT(CONCATENATE(CHAR(COLUMN()+65),ROW()-1))>=0,0,INDIRECT(CONCATENATE(CHAR(COLUMN()+65),ROW()-1))),INDIRECT(CONCATENATE(CHAR(COLUMN()+64),ROW()-1))))","v":0},0,0,0,4,0,-2,-2,{"$f":"B13","v":0}]
[0,{"$f":"IF(MOD(ROW(),2)=1,IF(INDIRECT(CONCATENATE(CHAR(COLUMN()+64),ROW()-1))>0,IF(INDIRECT(CONCATENATE(CHAR(COLUMN()+65),ROW()-1))<0,MAX(INDIRECT(CONCATENATE(CHAR(COLUMN()+64),ROW()-1))+INDIRECT(CONCATENATE(CHAR(COLUMN()+65),ROW()-1)),0),INDIRECT(CONCATENATE(CHAR(COLUMN()+64),ROW()-1))),IF(INDIRECT(CONCATENATE(CHAR(COLUMN()+64),ROW()-1))<0,IF(INDIRECT(CONCATENATE(CHAR(COLUMN()+63),ROW()-1))>0,MIN(INDIRECT(CONCATENATE(CHAR(COLUMN()+63),ROW()-1))+INDIRECT(CONCATENATE(CHAR(COLUMN()+64),ROW()-1)),0),INDIRECT(CONCATENATE(CHAR(COLUMN()+64),ROW()-1))),INDIRECT(CONCATENATE(CHAR(COLUMN()+64),ROW()-1)))),IF(INDIRECT(CONCATENATE(CHAR(COLUMN()+64),ROW()-1))<=0,IF(INDIRECT(CONCATENATE(CHAR(COLUMN()+65),ROW()-1))>=0,0,INDIRECT(CONCATENATE(CHAR(COLUMN()+65),ROW()-1))),INDIRECT(CONCATENATE(CHAR(COLUMN()+64),ROW()-1))))","v":0},0,0,0,4,-2,-2,0,{"$f":"B14","v":0}]
[0,{"$f":"IF(MOD(ROW(),2)=1,IF(INDIRECT(CONCATENATE(CHAR(COLUMN()+64),ROW()-1))>0,IF(INDIRECT(CONCATENATE(CHAR(COLUMN()+65),ROW()-1))<0,MAX(INDIRECT(CONCATENATE(CHAR(COLUMN()+64),ROW()-1))+INDIRECT(CONCATENATE(CHAR(COLUMN()+65),ROW()-1)),0),INDIRECT(CONCATENATE(CHAR(COLUMN()+64),ROW()-1))),IF(INDIRECT(CONCATENATE(CHAR(COLUMN()+64),ROW()-1))<0,IF(INDIRECT(CONCATENATE(CHAR(COLUMN()+63),ROW()-1))>0,MIN(INDIRECT(CONCATENATE(CHAR(COLUMN()+63),ROW()-1))+INDIRECT(CONCATENATE(CHAR(COLUMN()+64),ROW()-1)),0),INDIRECT(CONCATENATE(CHAR(COLUMN()+64),ROW()-1))),INDIRECT(CONCATENATE(CHAR(COLUMN()+64),ROW()-1)))),IF(INDIRECT(CONCATENATE(CHAR(COLUMN()+64),ROW()-1))<=0,IF(INDIRECT(CONCATENATE(CHAR(COLUMN()+65),ROW()-1))>=0,0,INDIRECT(CONCATENATE(CHAR(COLUMN()+65),ROW()-1))),INDIRECT(CONCATENATE(CHAR(COLUMN()+64),ROW()-1))))","v":0},0,0,0,2,0,-2,0,{"$f":"B15","v":0}]
[{"$f":"I16","v":0},{"$f":"IF(MOD(ROW(),2)=1,IF(INDIRECT(CONCATENATE(CHAR(COLUMN()+64),ROW()-1))>0,IF(INDIRECT(CONCATENATE(CHAR(COLUMN()+65),ROW()-1))<0,MAX(INDIRECT(CONCATENATE(CHAR(COLUMN()+64),ROW()-1))+INDIRECT(CONCATENATE(CHAR(COLUMN()+65),ROW()-1)),0),INDIRECT(CONCATENATE(CHAR(COLUMN()+64),ROW()-1))),IF(INDIRECT(CONCATENATE(CHAR(COLUMN()+64),ROW()-1))<0,IF(INDIRECT(CONCATENATE(CHAR(COLUMN()+63),ROW()-1))>0,MIN(INDIRECT(CONCATENATE(CHAR(COLUMN()+63),ROW()-1))+INDIRECT(CONCATENATE(CHAR(COLUMN()+64),ROW()-1)),0),INDIRECT(CONCATENATE(CHAR(COLUMN()+64),ROW()-1))),INDIRECT(CONCATENATE(CHAR(COLUMN()+64),ROW()-1)))),IF(INDIRECT(CONCATENATE(CHAR(COLUMN()+64),ROW()-1))<=0,IF(INDIRECT(CONCATENATE(CHAR(COLUMN()+65),ROW()-1))>=0,0,INDIRECT(CONCATENATE(CHAR(COLUMN()+65),ROW()-1))),INDIRECT(CONCATENATE(CHAR(COLUMN()+64),ROW()-1))))","v":0},0,0,0,2,-2,0,0,{"$f":"B16","v":0}]
[0,{"$f":"IF(MOD(ROW(),2)=1,IF(INDIRECT(CONCATENATE(CHAR(COLUMN()+64),ROW()-1))>0,IF(INDIRECT(CONCATENATE(CHAR(COLUMN()+65),ROW()-1))<0,MAX(INDIRECT(CONCATENATE(CHAR(COLUMN()+64),ROW()-1))+INDIRECT(CONCATENATE(CHAR(COLUMN()+65),ROW()-1)),0),INDIRECT(CONCATENATE(CHAR(COLUMN()+64),ROW()-1))),IF(INDIRECT(CONCATENATE(CHAR(COLUMN()+64),ROW()-1))<0,IF(INDIRECT(CONCATENATE(CHAR(COLUMN()+63),ROW()-1))>0,MIN(INDIRECT(CONCATENATE(CHAR(COLUMN()+63),ROW()-1))+INDIRECT(CONCATENATE(CHAR(COLUMN()+64),ROW()-1)),0),INDIRECT(CONCATENATE(CHAR(COLUMN()+64),ROW()-1))),INDIRECT(CONCATENATE(CHAR(COLUMN()+64),ROW()-1)))),IF(INDIRECT(CONCATENATE(CHAR(COLUMN()+64),ROW()-1))<=0,IF(INDIRECT(CONCATENATE(CHAR(COLUMN()+65),ROW()-1))>=0,0,INDIRECT(CONCATENATE(CHAR(COLUMN()+65),ROW()-1))),INDIRECT(CONCATENATE(CHAR(COLUMN()+64),ROW()-1))))","v":0},0,0,0,0,0,0,0,{"$f":"B17","v":0}]
[null,"melyikből mennyit kell gyártani"]
[null,{"$f":"IF(B4<B5,ABS(B5-B4),0)","v":0},{"$f":"IF(C4<C5,ABS(C5-C4),0)","v":2},{"$f":"IF(D4<D5,ABS(D5-D4),0)","v":0},0,0,0,0,2]
[null,{"$f":"IF(B5<B6,ABS(B6-B5),0)","v":0},{"$f":"IF(C5<C6,ABS(C6-C5),0)","v":0},2,2,0,0,0,0]
[null,{"$f":"IF(B6<B7,ABS(B7-B6),0)","v":0},0,0,0,0,0,0,0]
[null,{"$f":"IF(B7<B8,ABS(B8-B7),0)","v":0},2,2,0,0,0,0,0]
[null,{"$f":"IF(B8<B9,ABS(B9-B8),0)","v":0},0,0,0,0,0,0,1]
[null,{"$f":"IF(B9<B10,ABS(B10-B9),0)","v":2},2,0,0,0,0,0,0]
[null,{"$f":"IF(B10<B11,ABS(B11-B10),0)","v":0},{"$f":"IF(C10<C11,ABS(C11-C10),0)","v":0},{"$f":"IF(D10<D11,ABS(D11-D10),0)","v":0},0,0,0,0,2]
[null,{"$f":"IF(B11<B12,ABS(B12-B11),0)","v":2},0,0,0,0,0,0,0]
[null,{"$f":"IF(B12<B13,ABS(B13-B12),0)","v":0},0,0,0,0,0,0,0]
[null,{"$f":"IF(B13<B14,ABS(B14-B13),0)","v":0},0,0,0,0,0,0,2]
[null,{"$f":"IF(B14<B15,ABS(B15-B14),0)","v":0},0,0,0,0,2,0,0]
[null,{"$f":"IF(B15<B16,ABS(B16-B15),0)","v":0},0,0,0,0,0,2,0]
[null,{"$f":"IF(B16<B17,ABS(B17-B16),0)","v":0},{"$f":"IF(C16<C17,ABS(C17-C16),0)","v":0},{"$f":"IF(D16<D17,ABS(D17-D16),0)","v":0},0,0,2,0,0]
[null,{"$f":"SUM(B19:B31)","v":4},{"$f":"SUM(C19:C31)","v":6},4,2,0,4,2,7]